fUST/lending_fUST_20250715
["ID","MTS","AMOUNT","RATE_DAILY","PERIOD"]
[372329649,1752592238862,-500.0,0.00021864,2]
[372329651,1752592238871,-500.0,0.00021864,2]
[372329653,1752592238881,-500.0,0.00021864,2]
[372329655,1752592238891,-317.14605924,0.00021864,2]
[372329657,1752592238900,-500.0,0.00021864,2]
[372329659,1752592238910,-500.0,0.00021864,2]
[372329661,1752592238919,-500.0,0.00021864,2]
[372329663,1752592238929,-500.0,0.00021864,2]
[372329665,1752592238938,-460.0,0.00021866,2]
[372329667,1752592238949,-460.0,0.00021866,2]
[372329669,1752592238959,-460.0,0.00021866,2]
[372329672,1752592238970,-460.0,0.00021866,2]
[372329674,1752592238980,-460.0,0.00021866,2]
[372329676,1752592238990,-460.0,0.00021866,2]
[372329677,1752592238999,-460.0,0.00021866,2]
[372329680,1752592239009,-460.0,0.00021866,2]
[372329682,1752592239018,-460.0,0.00021866,2]
[372329684,1752592239028,-460.0,0.00021866,2]
[372329685,1752592239039,-460.0,0.00021866,2]
[372329687,1752592239049,-460.0,0.00021866,2]
[372329689,1752592239058,-460.0,0.00021866,2]
[372329691,1752592239068,-460.0,0.00021866,2]
[372329693,1752592239077,-460.0,0.00021867,2]
[372329695,1752592239087,-460.0,0.00021867,2]
[372329697,1752592239096,-300.25377464,0.00021867,2]
[372329699,1752592239106,-460.0,0.00021867,2]
[372329701,1752592239116,-460.0,0.00021867,2]
[372329703,1752592239127,-460.0,0.00021867,2]
[372329705,1752592239136,-460.0,0.00021867,2]
[372329707,1752592239146,-460.0,0.00021867,2]
[372329709,1752592239156,-460.0,0.00021867,2]
[372329711,1752592239165,-494.60709884,0.00021867,2]
[372329713,1752592239174,-460.0,0.00021867,2]
[372329715,1752592239183,-460.0,0.00021867,2]
[372329717,1752592239193,-460.0,0.00021867,2]
[372329719,1752592239203,-460.0,0.00021867,2]
[372329721,1752592239212,-460.0,0.00021867,2]
[372329723,1752592239221,-460.0,0.00021867,2]
[372329725,1752592239231,-460.0,0.00021867,2]
[372329727,1752592239240,-462.91111312,0.00021867,2]
[372329729,1752592239250,-460.37557081,0.00021867,2]
[372329731,1752592239259,-460.0,0.00021867,2]
[372329733,1752592239268,-460.0,0.00021867,2]
[372329735,1752592239278,-460.75722735,0.00021867,2]
[372329737,1752592239288,-460.0,0.00021867,2]
[372329739,1752592239298,-460.0,0.00021867,2]
[372329741,1752592239307,-460.0,0.00021867,2]
[372329743,1752592239316,-590.00082965,0.00021867,2]
[372329745,1752592239326,-460.0,0.00021867,2]
[372329747,1752592239336,-460.0,0.00021867,2]
[372329749,1752592239346,-460.0,0.00021867,2]
[372329751,1752592239356,-460.0,0.00021867,2]
[372329753,1752592239366,-460.0,0.00021867,2]
[372329755,1752592239375,-460.0,0.00021867,2]
[372329757,1752592239385,-460.0,0.00021867,2]
[372329759,1752592239399,-460.0,0.00021867,2]
[372329761,1752592239409,-460.0,0.00021867,2]
[372329763,1752592239418,-460.0,0.00021867,2]
[372329766,1752592239428,-460.0,0.00021867,2]
[372329768,1752592239440,-460.0,0.00021867,2]
[372329770,1752592239449,-460.0,0.00021867,2]
[372329772,1752592239458,-460.0,0.00021867,2]
[372329773,1752592239468,-460.0,0.00021867,2]
[372329775,1752592239479,-279.14284346,0.00021867,2]
[372329778,1752592239489,-460.0,0.00021867,2]
[372329779,1752592239498,-460.0,0.00021867,2]
[372329781,1752592239508,-460.0,0.00021867,2]
[372329783,1752592239517,-460.0,0.00021867,2]
[372329785,1752592239527,-460.0,0.00021867,2]
[372329788,1752592239537,-460.0,0.00021867,2]
[372329790,1752592239547,-364.28337965,0.00021867,2]
[372329792,1752592239556,-460.0,0.00021867,2]
[372329794,1752592239566,-220.8,0.00021867,2]
[372329796,1752592239575,-460.0,0.00021867,2]
[372329797,1752592239585,-460.0,0.00021867,2]
[372329800,1752592239595,-442.34809504,0.00021867,2]
[372329802,1752592239604,-460.0,0.00021867,2]
[372329805,1752592239614,-460.0,0.00021867,2]
[372329806,1752592239623,-460.0,0.00021867,2]
[372329807,1752592239632,-460.0,0.00021867,2]
[372329808,1752592239642,-767.6,0.00021867,2]
[372329809,1752592239652,-460.0,0.00021867,2]
[372329810,1752592239661,-460.0,0.00021867,2]
[372329813,1752592239670,-460.0,0.00021867,2]
[372329815,1752592239679,-460.0,0.00021867,2]
[372329816,1752592239688,-460.0,0.00021867,2]
[372329818,1752592239698,-460.0,0.00021867,2]
[372329820,1752592239707,-460.0,0.00021867,2]
[372329822,1752592239716,-460.0,0.00021867,2]
[372329823,1752592239724,-460.0,0.00021867,2]
[372329824,1752592239733,-460.0,0.00021867,2]
[372329825,1752592239742,-500.0,0.00021867,2]
[372329826,1752592239751,-161.9,0.00021873,2]
[372329827,1752592239761,-455.5883617,0.00021894,2]
[372329828,1752592239770,-460.0,0.00021894,2]
[372329829,1752592239780,-460.0,0.00021894,2]
[372329830,1752592239790,-460.0,0.00021894,2]
[372329831,1752592239799,-460.0,0.00021895,2]
[372329832,1752592239809,-262.26393637,0.00021895,2]
[372329833,1752592239818,-460.0,0.00021895,2]
[372329834,1752592239828,-460.80517486,0.00021895,2]
[372329835,1752592239837,-457.59336901,0.00021895,2]
[372329836,1752592239846,-460.0,0.00021895,2]
[372329837,1752592239856,-460.0,0.00021895,2]
[372329838,1752592239865,-460.0,0.00021895,2]
[372329839,1752592239874,-460.0,0.00021895,2]
[372329840,1752592239883,-460.0,0.00021895,2]
[372329841,1752592239893,-460.0,0.00021895,2]
[372329842,1752592239902,-460.0,0.00021895,2]
[372329843,1752592239911,-460.0,0.00021895,2]
[372329844,1752592239921,-460.0,0.00021895,2]
[372329845,1752592239930,-460.0,0.00021895,2]
[372329847,1752592239939,-460.0,0.00021895,2]
[372329849,1752592239948,-460.0,0.00021895,2]
[372329851,1752592239958,-460.0,0.00021895,2]
[372329853,1752592239968,-460.0,0.00021895,2]
[372329855,1752592239978,-524.91201832,0.00021895,2]
[372329869,1752592240099,-460.0,0.00021895,2]
[372329871,1752592240110,-460.0,0.00021895,2]
[372329873,1752592240119,-460.0,0.00021895,2]
[372329875,1752592240129,-201.084,0.00021895,2]
[372329877,1752592240139,-460.0,0.00021895,2]
[372329879,1752592240148,-460.0,0.00021895,2]
[372329881,1752592240158,-460.0,0.00021895,2]
[372329883,1752592240167,-460.0,0.00021895,2]
[372329885,1752592240176,-460.0,0.00021895,2]
[372329887,1752592240186,-460.0,0.00021895,2]
[372329889,1752592240195,-460.0,0.00021895,2]
[372329891,1752592240206,-460.0,0.00021895,2]
[372329893,1752592240216,-460.0,0.00021895,2]
[372329895,1752592240225,-460.0,0.00021895,2]
[372329897,1752592240235,-460.0,0.00021895,2]
[372329899,1752592240245,-460.0,0.00021895,2]
[372329901,1752592240255,-460.0,0.00021895,2]
[372329903,1752592240264,-460.0,0.00021895,2]
[372329905,1752592240274,-283.35372384,0.00021895,2]
[372329907,1752592240284,-460.0,0.00021895,2]
[372329909,1752592240296,-460.0,0.00021895,2]
[372329911,1752592240305,-239.72158602,0.00021895,2]
[372329913,1752592240315,-460.0,0.00021895,2]
[372329915,1752592240324,-460.0,0.00021895,2]
[372329917,1752592240334,-460.0,0.00021895,2]
[372329919,1752592240344,-460.0,0.00021895,2]
[372329921,1752592240354,-460.0,0.00021895,2]
[372329923,1752592240363,-460.0,0.00021895,2]
[372329925,1752592240373,-460.0,0.00021895,2]
[372329927,1752592240383,-466.75316974,0.00021895,2]
[372329929,1752592240397,-460.0,0.00021895,2]
[372329931,1752592240406,-460.0,0.00021895,2]
[372329933,1752592240415,-460.0,0.00021895,2]
[372329935,1752592240425,-460.0,0.00021895,2]
[372329937,1752592240435,-460.0,0.00021895,2]
[372329940,1752592240444,-500.0,0.00021895,2]
[372329942,1752592240454,-281.82270609,0.00021895,2]
[372329944,1752592240464,-460.0,0.00021895,2]
[372329946,1752592240473,-460.0,0.00021895,2]
[372329948,1752592240483,-460.0,0.00021895,2]
[372329950,1752592240492,-460.0,0.00021895,2]
[372329952,1752592240502,-460.0,0.00021895,2]
[372329954,1752592240511,-460.0,0.00021895,2]
[372329956,1752592240521,-500.0,0.00021895,2]
[372329958,1752592240530,-598.51016383,0.00021895,2]
[372329960,1752592240543,-460.0,0.00021895,2]
[372329962,1752592240553,-460.0,0.00021895,2]
[372329964,1752592240563,-460.0,0.00021895,2]
[372329966,1752592240572,-460.0,0.00021895,2]
[372329968,1752592240582,-460.0,0.00021895,2]
[372329970,1752592240591,-460.0,0.00021895,2]
[372329972,1752592240601,-460.0,0.00021895,2]
[372329974,1752592240610,-460.0,0.00021895,2]
[372329976,1752592240620,-460.0,0.00021895,2]
[372329978,1752592240629,-569.28878003,0.00021895,2]
[372329980,1752592240638,-460.58226581,0.00021896,2]
[372329982,1752592240648,-403.44862995,0.00021896,2]
[372329984,1752592240657,-460.0,0.00021896,2]
[372329986,1752592240667,-460.0,0.00021896,2]
[372329988,1752592240676,-460.0,0.00021896,2]
[372329990,1752592240685,-460.0,0.00021896,2]
[372329992,1752592240694,-460.0,0.00021896,2]
[372329994,1752592240704,-460.0,0.00021896,2]
[372329996,1752592240714,-460.0,0.00021896,2]
[372329998,1752592240724,-500.0,0.00021896,2]
[372330000,1752592240733,-460.0,0.00021896,2]
[372330002,1752592240743,-460.36881647,0.00021896,2]
[372330004,1752592240754,-460.0,0.00021896,2]
[372330006,1752592240763,-460.0,0.00021896,2]
[372330008,1752592240773,-460.0,0.00021896,2]
[372330010,1752592240782,-460.0,0.00021896,2]
[372330012,1752592240795,-460.0,0.00021896,2]
[372330014,1752592240805,-460.0,0.00021896,2]
[372330016,1752592240815,-460.0,0.00021896,2]
[372330018,1752592240824,-461.06500707,0.00021896,2]
[372330020,1752592240833,-460.0,0.00021896,2]
[372330022,1752592240842,-460.0,0.00021896,2]
[372330024,1752592240852,-460.0,0.00021896,2]
[372330026,1752592240861,-460.20307646,0.00021896,2]
[372330028,1752592240871,-460.0,0.00021896,2]
[372330030,1752592240881,-460.0,0.00021896,2]
[372330032,1752592240890,-460.0,0.00021896,2]
[372330034,1752592240899,-460.0,0.00021896,2]
[372330036,1752592240908,-558.7606319,0.00021896,2]
[372330038,1752592240917,-460.0,0.00021896,2]
[372330040,1752592240926,-460.0,0.00021896,2]
[372330042,1752592240935,-460.0,0.00021896,2]
[372330044,1752592240944,-460.0,0.00021896,2]
[372330047,1752592240954,-460.0,0.00021896,2]
[372330050,1752592240963,-460.0,0.00021896,2]
[372330053,1752592240973,-460.0,0.00021896,2]
[372330055,1752592240983,-460.0,0.00021896,2]
[372330057,1752592240992,-460.0,0.00021896,2]
[372330059,1752592241002,-460.0,0.00021896,2]
[372330061,1752592241011,-460.0,0.00021896,2]
[372330063,1752592241021,-460.0,0.00021896,2]
[372330065,1752592241030,-460.0,0.00021896,2]
[372330067,1752592241041,-460.0,0.00021896,2]
[372330069,1752592241051,-460.0,0.00021896,2]
[372330071,1752592241060,-460.0,0.00021896,2]
[372330073,1752592241069,-603.73116527,0.00021896,2]
[372330075,1752592241078,-460.0,0.00021896,2]
[372330076,1752592241087,-460.0,0.00021896,2]
[372330079,1752592241097,-460.0,0.00021896,2]
[372330081,1752592241107,-460.0,0.00021896,2]
[372330082,1752592241116,-460.0,0.00021896,2]
[372330084,1752592241126,-460.0,0.00021896,2]
[372330086,1752592241135,-460.0,0.00021896,2]
[372330088,1752592241144,-460.0,0.00021896,2]
[372330090,1752592241154,-595.18228056,0.00021896,2]
[372330092,1752592241164,-460.0,0.00021896,2]
[372330094,1752592241174,-460.0,0.00021896,2]
[372330096,1752592241185,-460.0,0.00021896,2]
[372330099,1752592241195,-573.3312053,0.00021896,2]
[372330101,1752592241205,-460.0,0.00021896,2]
[372330103,1752592241214,-460.0,0.00021896,2]
[372330105,1752592241224,-460.0,0.00021896,2]
[372330107,1752592241233,-460.0,0.00021896,2]
[372330109,1752592241243,-460.0,0.00021896,2]
[372330110,1752592241252,-460.0,0.00021896,2]
[372330112,1752592241262,-460.0,0.00021898,2]
[372330115,1752592241272,-460.0,0.00021898,2]
[372330117,1752592241281,-3000.0,0.000219,2]
[372330118,1752592241291,-3000.0,0.0002191,2]
[372330120,1752592241301,-4431.136531,0.0002192,2]
[372330122,1752592241311,-460.0,0.00021989,2]
[372330124,1752592241321,-162.0,0.00022,2]
[372330127,1752592241331,-634.2230988,0.00022064,2]
[372330129,1752592241340,-460.0,0.0002214,2]
[372330130,1752592241350,-460.0,0.0002214,2]
[372330133,1752592241359,-460.0,0.0002214,2]
[372330135,1752592241369,-101.70053338,0.0002214,2]
[372330137,1752592241384,-358.29946662,0.0002214,2]
[372330139,1752592241398,-460.0,0.0002214,2]
[372330141,1752592241408,-460.0,0.0002214,2]
[372330143,1752592241417,-460.0,0.0002214,2]
[372330145,1752592241427,-460.0,0.0002214,2]
[372330147,1752592241437,-460.0,0.0002214,2]
[372330149,1752592241447,-460.0,0.0002214,2]
[372330151,1752592241456,-460.0,0.0002214,2]
[372330153,1752592241465,-460.0,0.00022141,2]
[372330155,1752592241474,-460.0,0.00022141,2]
[372330157,1752592241484,-460.0,0.00022141,2]
[372330159,1752592241494,-460.0,0.00022141,2]
[372330161,1752592241505,-460.0,0.00022141,2]
[372330163,1752592241515,-167.74086284,0.00022141,2]
[372330165,1752592241526,-292.25913716,0.00022141,2]
[372330168,1752592241537,-240.83387996,0.00022141,2]
[372330170,1752592241548,-219.16612004,0.00022141,2]
[372330172,1752592241559,-460.0,0.00022141,2]
[372330174,1752592241569,-323.68964308,0.00022141,2]
[372330176,1752592241581,-136.31035692,0.00022141,2]
[372330178,1752592241591,-460.0,0.00022141,2]
[372330180,1752592241601,-460.0,0.00022141,2]
[372330182,1752592241610,-460.0,0.00022141,2]
[372330184,1752592241620,-460.0,0.00022141,2]
[372330186,1752592241630,-460.0,0.00022141,2]
[372330188,1752592241640,-460.0,0.00022141,2]
[372330190,1752592241650,-460.0,0.00022141,2]
[372330192,1752592241659,-176.06996759,0.00022141,2]
[372330195,1752592241671,-61.72423051,0.00022141,2]
[372330197,1752592241681,-460.0,0.00022141,2]
[372330199,1752592241691,-460.0,0.00022141,2]
[372330201,1752592241701,-460.0,0.00022141,2]
[372330203,1752592241710,-460.0,0.00022141,2]
[372330204,1752592241719,-460.0,0.00022141,2]
[372330206,1752592241728,-460.0,0.00022141,2]
[372330209,1752592241738,-767.6,0.00022141,2]
[372330211,1752592241748,-460.0,0.00022141,2]
[372330212,1752592241758,-460.0,0.00022141,2]
[372330215,1752592241768,-460.0,0.00022141,2]
[372330216,1752592241778,-460.0,0.00022141,2]
[372330218,1752592241788,-305.12869096,0.00022169,2]
[372330221,1752592241798,-460.0,0.00022169,2]
[372330223,1752592241808,-460.0,0.00022169,2]
[372330224,1752592241818,-460.0,0.00022169,2]
[372330227,1752592241829,-460.0,0.00022169,2]
[372330229,1752592241838,-460.0,0.00022169,2]
[372330231,1752592241848,-460.0,0.00022169,2]
[372330233,1752592241858,-460.0,0.00022169,2]
[372330235,1752592241868,-460.0,0.00022169,2]
[372330237,1752592241877,-460.0,0.00022169,2]
[372330238,1752592241886,-575.24,0.00022169,2]
[372330241,1752592241896,-195.8,0.00022169,2]
[372330243,1752592241906,-585.36,0.00022169,2]
[372330245,1752592241915,-460.0,0.00022169,2]
[372330247,1752592241926,-460.0,0.00022169,2]
[372330249,1752592241936,-460.0,0.00022169,2]
[372330251,1752592241945,-460.0,0.00022169,2]
[372330253,1752592241955,-460.0,0.00022169,2]
[372330255,1752592241965,-460.0,0.0002217,2]
[372330257,1752592241974,-460.0,0.00022263,2]
[372330259,1752592241985,-460.0,0.00022414,2]
[372330261,1752592241995,-460.0,0.00022414,2]
[372330263,1752592242004,-335.04,0.00022414,2]
[372330265,1752592242014,-374.44358891,0.00022414,2]
[372330267,1752592242023,-460.0,0.00022414,2]
[372330269,1752592242033,-460.0,0.00022414,2]
[372330271,1752592242043,-460.0,0.00022414,2]
[372330273,1752592242053,-460.0,0.00022414,2]
[372330275,1752592242062,-460.0,0.00022415,2]
[372330277,1752592242071,-460.0,0.00022415,2]
[372330279,1752592242081,-460.0,0.00022415,2]
[372330281,1752592242091,-460.0,0.00022415,2]
[372330283,1752592242101,-460.0,0.00022415,2]
[372330285,1752592242111,-460.0,0.00022415,2]
[372330287,1752592242127,-460.0,0.00022415,2]
[372330289,1752592242137,-460.0,0.00022415,2]
[372330291,1752592242147,-460.0,0.00022415,2]
[372330293,1752592242156,-498.78,0.00022415,2]
[372330295,1752592242166,-460.0,0.00022415,2]
[372330297,1752592242175,-460.0,0.00022415,2]
[372330299,1752592242185,-460.0,0.00022415,2]
[372330301,1752592242194,-552.98,0.00022415,2]
[372330303,1752592242204,-767.6,0.00022415,2]
[372330305,1752592242213,-460.0,0.00022415,2]
[372330307,1752592242223,-460.0,0.00022415,2]
[372330309,1752592242232,-155.88706673,0.00022415,2]
[372330311,1752592242242,-460.0,0.00022443,2]
[372330313,1752592242252,-460.0,0.00022443,2]
[372330315,1752592242262,-460.0,0.00022443,2]
[372330317,1752592242271,-215.88,0.00022443,2]
[372330319,1752592242280,-160.3,0.00022443,2]
[372330321,1752592242292,-460.0,0.00022443,2]
[372330323,1752592242302,-460.0,0.00022443,2]
[372330325,1752592242313,-460.95236869,0.00022443,2]
[372330327,1752592242322,-494.36,0.00022443,2]
[372330329,1752592242332,-500.0,0.00022473,2]
[372330331,1752592242342,-207.4,0.00022519,2]
[372330333,1752592242352,-500.0,0.00022519,2]
[372330335,1752592242362,-484.0,0.00022519,2]
[372330337,1752592242371,-4140.5,0.00022519,2]
[372330339,1752592242381,-257.886937,0.00022523,2]
[372330341,1752592242394,-460.0,0.00022537,2]
[372330343,1752592242404,-2065.09725435,0.00022629,2]
[372330346,1752592242414,-460.0,0.00022688,2]
[372330348,1752592242424,-311.22794572,0.00022688,2]
[372330350,1752592242435,-460.0,0.00022688,2]
[372330352,1752592242445,-460.0,0.00022688,2]
[372330354,1752592242455,-352.54,0.00022688,2]
[372330356,1752592242466,-460.0,0.00022689,2]
[372330358,1752592242476,-460.0,0.00022689,2]
[372330360,1752592242485,-460.0,0.00022689,2]
[372330362,1752592242495,-460.0,0.00022689,2]
[372330364,1752592242506,-460.0,0.00022689,2]
[372330366,1752592242516,-460.0,0.00022689,2]
[372330368,1752592242526,-190.82442747,0.00022689,2]
[372330373,1752592242561,-460.0,0.00022689,2]
[372330375,1752592242571,-357.18,0.00022689,2]
[372330377,1752592242581,-767.6,0.00022689,2]
[372330379,1752592242590,-460.0,0.00022689,2]
[372330381,1752592242599,-460.0,0.00022689,2]
[372330383,1752592242609,-634.2230988,0.00022699,2]
[372330385,1752592242619,-460.0,0.00022717,2]
[372330387,1752592242628,-460.46,0.00022717,2]
[372330388,1752592242638,-399.06,0.00022717,2]
[372330390,1752592242647,-1680.0,0.00022729,2]
[372330392,1752592242657,-347.59,0.000228,7]
[372330394,1752592242666,-473.85,0.00022811,2]
[372330397,1752592242676,-460.0,0.00022962,2]
[372330399,1752592242686,-460.0,0.00022962,2]
[372330401,1752592242695,-460.0,0.00022962,2]
[372330403,1752592242704,-206.19,0.00022963,2]
[372330405,1752592242714,-460.0,0.00022963,2]
[372330407,1752592242723,-460.0,0.00022963,2]
[372330408,1752592242732,-217.14,0.00022963,2]
[372330411,1752592242741,-460.0,0.00022963,2]
[372330413,1752592242751,-767.6,0.00022963,2]
[372330415,1752592242761,-460.0,0.00022963,2]
[372330417,1752592242770,-460.0,0.00022963,2]
[372330419,1752592242781,-677.85,0.00022987,3]
[372330421,1752592242792,-460.0,0.00022991,2]
[372330423,1752592242802,-460.0,0.00022999,2]
[372330425,1752592242812,-460.0,0.00022999,2]
[372330427,1752592242823,-460.0,0.00022999,2]
[372330429,1752592242832,-460.5026387,0.00022999,2]
[372330431,1752592242841,-460.0,0.00022999,2]
[372330433,1752592242851,-460.0,0.00022999,2]
[372330435,1752592242860,-460.0,0.00022999,2]
[372330437,1752592242870,-460.0,0.00022999,2]
[372330439,1752592242880,-460.0,0.00022999,2]
[372330441,1752592242890,-1000.0,0.00022999,2]
[372330443,1752592242899,-460.0,0.00022999,2]
[372330445,1752592242909,-460.0,0.00022999,2]
[372330447,1752592242918,-460.0,0.00022999,2]
[372330449,1752592242928,-460.0,0.00022999,2]
[372330451,1752592242938,-460.0,0.00022999,2]
[372330453,1752592242947,-460.0,0.00022999,2]
[372330455,1752592242957,-460.0,0.00022999,2]
[372330457,1752592242966,-460.0,0.00022999,2]
[372330459,1752592242976,-460.0,0.00022999,2]
[372330461,1752592242986,-1117.08,0.00023,7]
[372330463,1752592242996,-800.19,0.00023,2]
[372330465,1752592243005,-162.0,0.00023014,7]
[372330467,1752592243015,-1000.0,0.00023021,2]
[372330469,1752592243024,-160.833908,0.00023182,2]
[372330471,1752592243034,-160.0,0.00023187,2]
[372330473,1752592243046,-460.0,0.00023236,2]
[372330475,1752592243056,-479.19883024,0.00023236,2]
[372330477,1752592243066,-460.0,0.00023236,2]
[372330479,1752592243076,-460.0,0.00023236,2]
[372330481,1752592243086,-767.6,0.00023236,2]
[372330483,1752592243095,-460.0,0.00023236,2]
[372330486,1752592243105,-460.0,0.00023236,2]
[372330488,1752592243114,-460.0,0.00023236,2]
[372330491,1752592243124,-400.4722192,0.00023236,2]
[372330493,1752592243134,-481.81908368,0.00023265,2]
[372330495,1752592243143,-181.87,0.00023273,2]
[372330497,1752592243153,-460.0,0.00023273,2]
[372330500,1752592243163,-460.0,0.00023273,2]
[372330501,1752592243172,-460.0,0.00023273,2]
[372330504,1752592243182,-483.54889273,0.00023273,2]
[372330506,1752592243191,-460.0,0.00023273,2]
[372330507,1752592243201,-460.0,0.00023273,2]
[372330509,1752592243211,-2065.09725434,0.00023282,2]
[372330512,1752592243220,-420.0,0.00023299,2]
[372330514,1752592243230,-634.2230988,0.00023335,2]
[372330516,1752592243240,-460.0,0.0002351,2]
[372330518,1752592243249,-460.0,0.0002351,2]
[372330520,1752592243260,-460.0,0.0002351,2]
[372330522,1752592243269,-767.6,0.0002351,2]
[372330525,1752592243278,-460.0,0.0002351,2]
[372330529,1752592243289,-299.78,0.0002351,2]
[372330532,1752592243300,-460.0,0.0002351,2]
[372330534,1752592243310,-460.0,0.00023547,2]
[372330536,1752592243320,-460.0,0.00023547,2]
[372330538,1752592243331,-460.0,0.00023547,2]
[372330540,1752592243349,-460.0,0.00023547,2]
[372330542,1752592243363,-1500.0,0.00023568,2]
[372330544,1752592243373,-260.0,0.00023735,2]
[372330546,1752592243383,-460.0,0.00023784,2]
[372330548,1752592243396,-460.0,0.00023784,2]
[372330550,1752592243406,-460.0,0.00023784,2]
[372330552,1752592243416,-767.6,0.00023784,2]
[372330554,1752592243426,-460.0,0.00023784,2]
[372330556,1752592243436,-460.0,0.00023784,2]
[372330558,1752592243446,-192.44,0.00023821,2]
[372330560,1752592243456,-460.0,0.00023821,2]
[372330562,1752592243466,-398.62,0.00023821,2]
[372330564,1752592243475,-197.92,0.00023821,2]
[372330566,1752592243485,-500.0,0.00023874,2]
[372330568,1752592243495,-215.0738,0.00023888,2]
[372330570,1752592243506,-178.37619901,0.000239,2]
[372330572,1752592243516,-2065.09725434,0.00023935,2]
[372330574,1752592243525,-634.2230988,0.0002397,2]
[372330576,1752592243535,-150.0,0.00023973,2]
[372330578,1752592243547,-460.0,0.00023987,2]
[372330580,1752592243556,-460.0,0.00023987,2]
[372330582,1752592243567,-460.0,0.00023987,2]
[372330584,1752592243576,-460.0,0.00023987,2]
[372330586,1752592243586,-460.74735744,0.00023987,2]
[372330588,1752592243595,-460.0,0.00023987,2]
[372330590,1752592243605,-460.0,0.00023987,2]
[372330592,1752592243615,-460.0,0.00023987,2]
[372330594,1752592243625,-460.75400842,0.00023987,2]
[372330597,1752592243634,-460.2444177,0.00023987,2]
[372330599,1752592243644,-460.0,0.00023987,2]
[372330601,1752592243655,-460.0,0.00023987,2]
[372330603,1752592243664,-460.0,0.00023987,2]
[372330605,1752592243674,-460.0,0.00023987,2]
[372330606,1752592243684,-460.0,0.00023987,2]
[372330609,1752592243694,-460.0,0.00023987,2]
[372330611,1752592243703,-460.0,0.00023987,2]
[372330613,1752592243712,-460.0,0.00023987,2]
[372330615,1752592243722,-460.0,0.00023987,2]
[372330617,1752592243732,-460.0,0.00023987,2]
[372330619,1752592243741,-460.37919079,0.00023987,2]
[372330621,1752592243751,-608.63942451,0.00023987,2]
[372330623,1752592243761,-460.0,0.00023987,2]
[372330625,1752592243771,-460.0,0.00023987,2]
[372330627,1752592243781,-460.29536521,0.00023987,2]
[372330629,1752592243793,-460.0,0.00023987,2]
[372330631,1752592243803,-460.0,0.00023987,2]
[372330633,1752592243813,-460.0,0.00023987,2]
[372330635,1752592243823,-460.0,0.00023987,2]
[372330637,1752592243832,-460.0,0.00023987,2]
[372330639,1752592243842,-460.0,0.00023987,2]
[372330641,1752592243852,-460.0,0.00023987,2]
[372330643,1752592243862,-460.0,0.00023987,2]
[372330645,1752592243871,-460.0,0.00023987,2]
[372330647,1752592243881,-460.0,0.00023987,2]
[372330649,1752592243891,-460.0,0.00023987,2]
[372330651,1752592243901,-460.0,0.00023987,2]